fUST/lending_fUST_20260101
["ID","MTS","AMOUNT","RATE_DAILY","PERIOD"]
[400210681,1767197448947,-246.03644,0.00037313,31]
[400210682,1767197448956,-348.323986,0.00037313,31]
[400210683,1767197448967,-246.03644,0.00037313,31]
[400210684,1767197448976,-216.363302,0.00037313,31]
[400210685,1767197448986,-348.323986,0.00037313,31]
[400210686,1767197448996,-246.03644,0.00037313,31]
[400210687,1767197449006,-216.363302,0.00037313,31]
[400210688,1767197449015,-348.323986,0.00037313,31]
[400210689,1767197449025,-246.03644,0.00037313,31]
[400210690,1767197449035,-216.363302,0.00037313,31]
[400210691,1767197449044,-246.03644,0.00037313,31]
[400210692,1767197449054,-348.323986,0.00037313,31]
[400210693,1767197449064,-216.363302,0.00037313,31]
[400210694,1767197449074,-151.0,0.00037313,31]
[400210695,1767197449083,-348.323986,0.00037313,31]
[400210696,1767197449093,-246.03644,0.00037313,31]
[400210697,1767197449103,-216.363302,0.00037313,31]
[400210698,1767197449113,-151.0,0.00037313,31]
[400210699,1767197449123,-348.323986,0.00037313,31]
[400210700,1767197449133,-246.03644,0.00037313,31]
[400210701,1767197449143,-216.363302,0.00037313,31]
[400210702,1767197449153,-151.0,0.00037313,31]
[400210703,1767197449164,-246.03644,0.00037313,31]
[400210704,1767197449178,-348.323986,0.00037313,31]
[400210705,1767197449187,-216.363302,0.00037313,31]
[400210706,1767197449197,-151.0,0.00037313,31]
[400210707,1767197449207,-246.03644,0.00037313,31]
[400210708,1767197449216,-348.323986,0.00037313,31]
[400210709,1767197449226,-216.363302,0.00037313,31]
[400210710,1767197449236,-151.0,0.00037313,31]
[400210711,1767197449245,-348.323987,0.00037313,31]
[400210712,1767197449257,-246.03644,0.00037313,31]
[400210713,1767197449266,-216.363302,0.00037313,31]
[400210714,1767197449276,-151.0,0.00037313,31]
[400210715,1767197449286,-246.03644,0.00037313,31]
[400210716,1767197449295,-216.363302,0.00037313,31]
[400210717,1767197449305,-151.0,0.00037313,31]
[400210718,1767197449315,-246.036447,0.00037313,31]
[400210719,1767197449324,-213.858622,0.00037313,31]
[400210720,1767197449333,-216.363302,0.00037313,31]
[400210721,1767197449343,-216.363302,0.00037313,31]
[400210722,1767197449353,-216.363302,0.00037313,31]
[400210723,1767197449362,-216.363302,0.00037313,31]
[400210724,1767197449372,-216.363302,0.00037313,31]
[400210725,1767197449381,-216.363293,0.00037313,31]
[400210726,1767197449390,-151.0,0.00037313,31]
[400210727,1767197449400,-151.0,0.00037313,31]
[400210728,1767197449409,-151.0,0.00037313,31]
[400210729,1767197449419,-151.0,0.00037313,31]
[400210730,1767197449429,-177.644782,0.00037313,31]
[400210731,1767197449438,-151.371196,0.00037313,31]
[400210732,1767197449448,-154.685612,0.00037313,31]
[400210733,1767197449458,-154.685612,0.00037313,31]
[400210734,1767197449467,-154.685612,0.00037313,31]
[400210735,1767197449477,-154.685612,0.00037313,31]
[400210736,1767197449489,-154.685612,0.00037313,31]
[400210737,1767197449497,-154.685612,0.00037313,31]
[400210738,1767197449507,-154.685612,0.00037313,31]
[400210739,1767197449516,-154.685612,0.00037313,31]
[400210740,1767197449525,-154.685612,0.00037313,31]
[400210741,1767197449535,-154.685612,0.00037313,31]
[400210742,1767197449544,-154.685612,0.00037313,31]
[400210743,1767197449553,-154.685612,0.00037313,31]
[400210744,1767197449563,-154.685612,0.00037313,31]
[400210745,1767197449572,-154.685612,0.00037313,31]
[400210746,1767197449582,-154.685612,0.00037313,31]
[400210747,1767197449591,-154.685612,0.00037313,31]
[400210748,1767197449600,-154.685612,0.00037313,31]
[400210749,1767197449609,-154.685612,0.00037313,31]
[400210750,1767197449619,-154.685612,0.00037313,31]
[400210751,1767197449629,-154.685605,0.00037313,31]
[400210752,1767197449638,-182.784702,0.00037313,31]
[400210753,1767197449648,-805.861522,0.00037313,31]
[400210754,1767197449658,-805.861522,0.00037313,31]
[400210755,1767197449667,-805.861522,0.00037313,31]
[400210756,1767197449677,-805.861522,0.00037313,31]
[400210757,1767197449686,-805.861522,0.00037313,31]
[400210758,1767197449696,-805.861522,0.00037313,31]
[400210759,1767197449706,-805.861522,0.00037313,31]
[400210760,1767197449715,-805.861522,0.00037313,31]
[400210761,1767197449725,-805.861522,0.00037313,31]
[400210762,1767197449735,-805.861522,0.00037313,31]
[400210763,1767197449745,-178.593012,0.00037313,2]
[400210764,1767197449754,-187.899686,0.00037313,31]
[400210765,1767197449764,-805.861522,0.00037313,31]
[400210766,1767197449774,-805.861522,0.00037313,31]
[400210767,1767197449783,-805.861522,0.00037313,31]
[400210768,1767197449792,-805.861522,0.00037313,31]
[400210770,1767197449802,-151.0,0.00037313,31]
[400210771,1767197449811,-805.861522,0.00037313,31]
[400210773,1767197449820,-151.0,0.00037313,31]
[400210774,1767197449829,-805.861522,0.00037313,31]
[400210775,1767197449838,-151.0,0.00037313,31]
[400210776,1767197449847,-805.861522,0.00037313,31]
[400210777,1767197449857,-151.0,0.00037313,31]
[400210778,1767197449866,-805.861522,0.00037313,31]
[400210779,1767197449876,-151.0,0.00037313,31]
[400210780,1767197449885,-805.861522,0.00037313,31]
[400210781,1767197449894,-151.0,0.00037313,31]
[400210782,1767197449904,-805.861521,0.00037313,31]
[400210783,1767197449914,-151.0,0.00037313,31]
[400210785,1767197449924,-151.0,0.00037313,31]
[400210786,1767197449934,-151.0,0.00037313,31]
[400210787,1767197449943,-151.0,0.00037313,31]
[400210788,1767197449952,-151.0,0.00037313,31]
[400210789,1767197449962,-151.0,0.00037313,31]
[400210790,1767197449971,-151.0,0.00037313,31]
[400210791,1767197449981,-180.131184,0.00037313,31]
[400210792,1767197449990,-151.0,0.00037313,31]
[400210793,1767197449999,-151.0,0.00037313,31]
[400210794,1767197450009,-151.0,0.00037313,31]
[400210795,1767197450019,-151.0,0.00037313,31]
[400210796,1767197450028,-151.0,0.00037313,31]
[400210797,1767197450038,-151.0,0.00037313,31]
[400210798,1767197450047,-151.0,0.00037313,31]
[400210799,1767197450056,-151.0,0.00037313,31]
[400210800,1767197450066,-151.0,0.00037313,31]
[400210801,1767197450076,-151.0,0.00037313,31]
[400210802,1767197450086,-151.0,0.00037313,31]
[400210803,1767197450095,-151.0,0.00037313,31]
[400210804,1767197450105,-1549.100689,0.00037313,31]
[400210805,1767197450115,-1549.100689,0.00037313,31]
[400210806,1767197450125,-1549.100689,0.00037313,31]
[400210807,1767197450135,-1549.100689,0.00037313,31]
[400210808,1767197450144,-1549.100689,0.00037313,31]
[400210809,1767197450154,-1549.100689,0.00037313,31]
[400210810,1767197450164,-1549.100689,0.00037313,31]
[400210811,1767197450177,-1549.100689,0.00037313,31]
[400210812,1767197450187,-1549.100689,0.00037313,31]
[400210813,1767197450196,-1549.100689,0.00037313,31]
[400210814,1767197450205,-1549.100689,0.00037313,31]
[400210815,1767197450215,-1549.100689,0.00037313,31]
[400210816,1767197450224,-1549.100689,0.00037313,31]
[400210817,1767197450234,-1549.100689,0.00037313,31]
[400210818,1767197450243,-1549.100689,0.00037313,31]
[400210819,1767197450255,-1549.100689,0.00037313,31]
[400210820,1767197450264,-1549.100689,0.00037313,31]
[400210821,1767197450274,-1549.100689,0.00037313,31]
[400210822,1767197450283,-1549.100689,0.00037313,31]
[400210823,1767197450293,-1549.100685,0.00037313,31]
[400210824,1767197450303,-238.741054,0.00037313,31]
[400210825,1767197450313,-238.741054,0.00037313,31]
[400210826,1767197450323,-238.741054,0.00037313,31]
[400210827,1767197450332,-190.150715,0.00037313,31]
[400210828,1767197450342,-238.741054,0.00037313,31]
[400210829,1767197450352,-190.150715,0.00037313,31]
[400210830,1767197450362,-238.741054,0.00037313,31]
[400210831,1767197450371,-190.150715,0.00037313,31]
[400210832,1767197450380,-238.741054,0.00037313,31]
[400210833,1767197450391,-190.150715,0.00037313,31]
[400210834,1767197450401,-238.741054,0.00037313,31]
[400210835,1767197450411,-190.150715,0.00037313,31]
[400210836,1767197450421,-238.741054,0.00037313,31]
[400210837,1767197450431,-190.150715,0.00037313,31]
[400210838,1767197450441,-238.741054,0.00037313,31]
[400210839,1767197450450,-190.150715,0.00037313,31]
[400210840,1767197450459,-238.741054,0.00037313,31]
[400210841,1767197450469,-190.150715,0.00037313,31]
[400210842,1767197450479,-238.741054,0.00037313,31]
[400210843,1767197450489,-190.150715,0.00037313,31]
[400210844,1767197450498,-238.741054,0.00037313,31]
[400210845,1767197450508,-190.150715,0.00037313,31]
[400210846,1767197450517,-238.741054,0.00037313,31]
[400210847,1767197450527,-190.150715,0.00037313,31]
[400210848,1767197450536,-238.741054,0.00037313,31]
[400210849,1767197450546,-190.150715,0.00037313,31]
[400210850,1767197450555,-238.741054,0.00037313,31]
[400210851,1767197450565,-190.150715,0.00037313,31]
[400210852,1767197450574,-238.741054,0.00037313,31]
[400210853,1767197450583,-190.150715,0.00037313,31]
[400210854,1767197450593,-238.741054,0.00037313,31]
[400210855,1767197450602,-190.150715,0.00037313,31]
[400210856,1767197450612,-238.741054,0.00037313,31]
[400210857,1767197450621,-190.150715,0.00037313,31]
[400210858,1767197450630,-190.150715,0.00037313,31]
[400210859,1767197450640,-238.741054,0.00037313,31]
[400210860,1767197450649,-190.150715,0.00037313,31]
[400210861,1767197450659,-238.741057,0.00037313,31]
[400210862,1767197450668,-190.150715,0.00037313,31]
[400210863,1767197450679,-190.150709,0.00037313,31]
[400210864,1767197450688,-151.0,0.00037313,31]
[400210865,1767197450699,-151.0,0.00037313,31]
[400210866,1767197450709,-151.0,0.00037313,31]
[400210867,1767197450719,-151.0,0.00037313,31]
[400210868,1767197450727,-151.0,0.00037313,31]
[400210869,1767197450737,-151.0,0.00037313,31]
[400210870,1767197450747,-151.0,0.00037313,31]
[400210871,1767197450756,-151.0,0.00037313,31]
[400210872,1767197450765,-151.0,0.00037313,31]
[400210873,1767197450775,-151.0,0.00037313,31]
[400210874,1767197450784,-151.0,0.00037313,31]
[400210875,1767197450794,-151.0,0.00037313,31]
[400210876,1767197450803,-166.656279,0.00037313,31]
[400210877,1767197450813,-906.127244,0.00037313,31]
[400210878,1767197450822,-906.127244,0.00037313,31]
[400210879,1767197450832,-906.127244,0.00037313,31]
[400210880,1767197450841,-906.127244,0.00037313,31]
[400210881,1767197450851,-151.0,0.00037313,31]
[400210882,1767197450860,-151.0,0.00037313,31]
[400210883,1767197450870,-151.0,0.00037313,31]
[400210884,1767197450880,-151.0,0.00037313,31]
[400210885,1767197450889,-643.406088,0.00037313,31]
[400210886,1767197450898,-643.406088,0.00037313,31]
[400210887,1767197450907,-151.0,0.00037313,31]
[400210888,1767197450917,-643.406088,0.00037313,31]
[400210889,1767197450926,-151.0,0.00037313,31]
[400210890,1767197451044,-643.406088,0.00037313,31]
[400210891,1767197451054,-151.0,0.00037313,31]
[400210892,1767197451064,-456.151152,0.00037313,31]
[400210893,1767197451074,-644575.89445382,0.00037315,20]
[400210894,1767197451107,-1516.0149673,0.00037315,20]
[400210895,1767197451119,-92919.40789,0.00037315,20]
[400210896,1767197451178,-302.598244,0.00028767,60]
[400210897,1767197451187,-456.151152,0.00037313,31]
[400210898,1767197451198,-156718.740044,0.00037315,20]
[400210899,1767197451463,-332.6574329,0.00014295,2]
[400210900,1767197451473,-500.0,0.00021917,2]
[400210901,1767197451482,-500.0,0.00022191,2]
[400210902,1767197451492,-500.0,0.00022465,2]
[400210903,1767197451501,-500.0,0.00022739,2]
[400210904,1767197451511,-500.0,0.00023013,2]
[400210905,1767197451521,-500.0,0.00023287,2]
[400210906,1767197451531,-500.0,0.00023561,2]
[400210907,1767197451540,-500.0,0.00023835,2]
[400210908,1767197451549,-500.0,0.00024109,2]
[400210909,1767197451559,-500.0,0.00024383,2]
[400210910,1767197451568,-500.0,0.00024657,2]
[400210911,1767197451577,-19070.0,0.00037213,30]
[400210912,1767197451587,-192.834623,0.00037313,31]
[400210913,1767197451596,-456.151152,0.00037313,31]
[400210914,1767197451606,-192.834623,0.00037313,31]
[400210915,1767197451615,-456.151152,0.00037313,31]
[400210916,1767197451624,-192.834623,0.00037313,31]
[400210917,1767197451634,-161077.8969941,0.00037315,20]
[400210918,1767197451653,-151.0,0.00037313,31]
[400210919,1767197451662,-1389.39242406,0.00037315,20]
[400210920,1767197451701,-332.6574329,0.00023415,2]
[400210921,1767197451711,-500.0,0.00024931,2]
[400210922,1767197451720,-500.0,0.00025205,2]
[400210923,1767197451730,-500.0,0.00025479,2]
[400210924,1767197451739,-192.834623,0.00037313,31]
[400210925,1767197451748,-43128.98163292,0.00037315,20]
[400210926,1767197451772,-37.78732608,0.00037315,20]
[400210927,1767197451811,-35.63593843,0.00037315,20]
[400210928,1767197451845,-35.67063422,0.00025753,2]
[400210929,1767197451856,-154.62973033,0.00025753,2]
[400210930,1767197451865,-332.99009033,0.00032535,2]
[400210931,1767197451874,-117.10017934,0.00037315,20]
[400211323,1767198428804,2273.21,0.0001095,2]
[400211487,1767198632781,-1200.0,0.00011639,2]
[400211488,1767198632791,-300.0,0.00011639,2]
[400211489,1767198632800,-195.0,0.00011639,2]
[400211490,1767198632810,-584.0,0.00011639,2]
[400211491,1767198632819,-1364.13380463,0.0001164,2]
[400211517,1767198638744,-648.53133731,0.0001164,2]
[400211519,1767198638756,-522.02361644,0.0001164,2]
[400211520,1767198638770,-7465.31124162,0.0001164,2]
[400211522,1767198638780,-320.20312882,0.00011649,2]
[400211524,1767198638789,-239.473,0.00012443,2]
[400211526,1767198638798,-500.0,0.00012595,2]
[400211527,1767198638807,-436.57895029,0.00012595,2]
[400211529,1767198638816,-1166.29368411,0.00012595,2]
[400211531,1767198638826,-500.0,0.00012595,2]
[400211532,1767198638835,-1166.29368411,0.00012595,2]
[400211534,1767198638845,-1166.29368411,0.00012595,2]
[400211535,1767198638854,-1166.29368411,0.00012595,2]
[400211536,1767198638863,-500.0,0.00012595,2]
[400211537,1767198638872,-1166.29368411,0.00012595,2]
[400211538,1767198638882,-1166.29368411,0.00012595,2]
[400211539,1767198638891,-1166.29368411,0.00012595,2]
[400211540,1767198638900,-1166.29368411,0.00012595,2]
[400211541,1767198638910,-500.0,0.00012595,2]
[400211542,1767198638919,-1166.29368411,0.00012595,2]
[400211543,1767198638928,-491.08092825,0.00012595,2]
[400211544,1767198638937,-500.0,0.00012595,2]
[400211545,1767198638947,-1166.29368411,0.00012595,2]
[400211546,1767198638956,-1166.29368411,0.00012595,2]
[400211547,1767198638965,-500.0,0.00012595,2]
[400211548,1767198638974,-504.90530343,0.00012595,2]
[400211549,1767198638984,-500.0,0.00012595,2]
[400211550,1767198638993,-500.0,0.00012595,2]
[400211551,1767198639003,-500.0,0.00012595,2]
[400211552,1767198639013,-500.0,0.00012595,2]
[400211553,1767198639022,-380.27461975,0.00012595,2]
[400211554,1767198639032,-410.74706303,0.00012595,2]
[400211555,1767198639041,-1000000.0,0.00012596,2]
[400211556,1767198639051,-161.83602163,0.000126,2]
[400211557,1767198639060,-5000.0,0.0001269,2]
[400211558,1767198639070,-50000.0,0.0001269,2]
[400211559,1767198639079,-151.0,0.000127,2]
[400211560,1767198639088,-151.0,0.000127,2]
[400211561,1767198639098,-151.0,0.000127,2]
[400211562,1767198639108,-151.0,0.000127,2]
[400211563,1767198639118,-151.0,0.000127,2]
[400211564,1767198639128,-151.0,0.000127,2]
[400211565,1767198639138,-151.0,0.000127,2]
[400211566,1767198639147,-151.0,0.000127,2]
[400211567,1767198639156,-151.0,0.000127,2]
[400211568,1767198639166,-151.0,0.000127,2]
[400211569,1767198639175,-151.0,0.000127,2]
[400211570,1767198639184,-151.0,0.000127,2]
[400211571,1767198639194,-151.0,0.000127,2]
[400211572,1767198639206,-150.0,0.00012717,2]
[400211573,1767198639215,-1200.0,0.00012782,2]
[400211574,1767198639225,-420.0,0.00012782,2]
[400211575,1767198639235,-489.48000919,0.00013273,2]
[400211576,1767198639244,-500.0,0.00013273,2]
[400211577,1767198639253,-500.0,0.00013273,2]
[400211578,1767198639262,-500.0,0.00013273,2]
[400211579,1767198639271,-436.0750698,0.00013273,2]
[400211580,1767198639281,-500.0,0.00013273,2]
[400211581,1767198639290,-500.0,0.00013273,2]
[400211582,1767198639299,-500.0,0.00013273,2]
[400211583,1767198639316,-500.0,0.00013273,2]
[400211584,1767198639329,-377.83969201,0.00013649,2]
[400211585,1767198639339,-580.76,0.00013698,2]
[400211586,1767198639348,-587.48,0.00013698,2]
[400211587,1767198639357,-587.48,0.00013698,2]
[400211588,1767198639371,-587.48,0.00013698,2]
[400211589,1767198639381,-587.48,0.00013698,2]
[400211590,1767198639390,-587.48,0.00013698,2]
[400211591,1767198639400,-587.48,0.00013698,2]
[400211592,1767198639409,-587.48,0.00013698,2]
[400211593,1767198639419,-587.48,0.00013698,2]
[400211594,1767198639428,-587.48,0.00013698,2]
[400211595,1767198639438,-587.48,0.00013698,2]
[400211596,1767198639447,-587.48,0.00013698,2]
[400211597,1767198639456,-587.48,0.00013698,2]
[400211598,1767198639468,-587.48,0.00013698,2]
[400211599,1767198639478,-587.48,0.00013698,2]
[400211600,1767198639491,-587.48,0.00013698,2]
[400211601,1767198639501,-587.48,0.00013698,2]
[400211602,1767198639510,-587.48,0.00013698,2]
[400211603,1767198639520,-587.48,0.00013698,2]
[400211604,1767198639530,-587.48,0.00013698,2]
[400211605,1767198639540,-587.48,0.00013698,2]
[400211606,1767198639549,-587.48,0.00013698,2]
[400211607,1767198639559,-587.48,0.00013698,2]
[400211608,1767198639568,-587.48,0.00013698,2]
[400211609,1767198639578,-587.68781649,0.00013698,2]
[400211610,1767198639587,-897.6414603,0.00013699,2]
[400211611,1767198639596,-805.345898,0.00013699,2]
[400211612,1767198639606,-237.68038452,0.00013699,2]
[400211613,1767198639615,-500.0,0.00013699,2]
[400211614,1767198639625,-500.0,0.00013699,2]
[400211615,1767198639636,-158.38534385,0.00013699,2]
[400211616,1767198639645,-500.0,0.00013699,2]
[400211617,1767198639655,-500.0,0.00013699,2]
[400211618,1767198639664,-436.1426325,0.00013699,2]
[400211619,1767198639674,-500.0,0.00013699,2]
[400211620,1767198639683,-500.0,0.00013699,2]
[400211621,1767198639692,-500.0,0.00013699,2]
[400211622,1767198639702,-500.0,0.00013699,2]
[400211623,1767198639711,-500.0,0.00013699,2]
[400211624,1767198639721,-500.0,0.00013699,2]
[400211625,1767198639730,-500.0,0.00013699,2]
[400211626,1767198639739,-500.0,0.00013699,2]
[400211627,1767198639749,-500.0,0.00013699,2]
[400211628,1767198639758,-500.0,0.00013699,2]
[400211629,1767198639767,-500.0,0.00013699,2]
[400211630,1767198639778,-500.0,0.00013699,2]
[400211631,1767198639787,-500.0,0.00013699,2]
[400211632,1767198639796,-500.0,0.00013699,2]
[400211633,1767198639806,-640.43328227,0.00013699,2]
[400211634,1767198639815,-500.0,0.00013699,2]
[400211635,1767198639824,-500.0,0.00013699,2]
[400211636,1767198639834,-500.0,0.00013699,2]
[400211637,1767198639843,-1000.0,0.00013821,2]
[400211638,1767198639852,-556.87906344,0.00013821,2]
[400211639,1767198639862,-1000.0,0.00013821,2]
[400211640,1767198639871,-1000.0,0.00013821,2]
[400211641,1767198639880,-150.0,0.00013873,2]
[400211642,1767198639890,-587.0,0.00014037,2]
[400211643,1767198639900,-1000.0,0.00014247,2]
[400211644,1767198639910,-1000.0,0.00014247,2]
[400211645,1767198639920,-439.9841302,0.00014247,2]
[400211646,1767198639929,-1000.0,0.00014247,2]
[400211647,1767198639938,-855.85292071,0.00014309,2]
[400211648,1767198639948,-1500.0,0.00014368,2]
[400211649,1767198639957,-1500.0,0.00014368,2]
[400211650,1767198639966,-1500.0,0.00014368,2]
[400211651,1767198639975,-1163.70037163,0.00014795,2]
[400211652,1767198639985,-1500.0,0.00014795,2]
[400211653,1767198639994,-1500.0,0.00014795,2]
[400211654,1767198640004,-250.0,0.00014803,2]
[400211655,1767198640013,-1000.0,0.00014832,2]
[400211656,1767198640023,-100000.0,0.00014882,2]
[400211657,1767198640032,-179.25919058,0.00014916,2]
[400211658,1767198640043,-2000.0,0.00014916,2]
[400211659,1767198640053,-1000.0,0.00014916,2]
[400211660,1767198640062,-220.0,0.00015,2]
[400211661,1767198640072,-166.7410174,0.00015013,2]
[400211662,1767198640081,-175.37,0.00015029,2]
[400211663,1767198640090,-1500.0,0.00015342,2]
[400211664,1767198640100,-1500.0,0.00015342,2]
[400211665,1767198640110,-823.0,0.00015415,2]
[400211666,1767198640120,-2500.0,0.00015464,2]
[400211667,1767198640129,-435.4762552,0.00015649,2]
[400211668,1767198640138,-2608.47131211,0.00016012,2]
[400211669,1767198640148,-233.82,0.00016185,2]
[400211670,1767198640157,-500.0,0.00016438,2]
[400211671,1767198640167,-500.0,0.00016438,2]
[400211672,1767198640176,-500.0,0.00016438,2]
[400211673,1767198640186,-500.0,0.00016438,2]
[400211674,1767198640195,-537.58528707,0.00016438,2]
[400211675,1767198640205,-588.0,0.00016928,2]
[400211676,1767198640214,-292.28,0.00017341,2]
[400211677,1767198640223,-855.85292071,0.00017347,2]
[400211678,1767198640233,-493.11281839,0.00017649,2]
[400211679,1767198640243,-1041.66666667,0.00017859,2]
[400211680,1767198640252,-350.73,0.00018497,2]
[400211681,1767198640261,-161.83602163,0.00018658,2]
[400211682,1767198640271,-500.0,0.00019178,2]
[400211683,1767198640280,-167.95184871,0.00019178,2]
[400211684,1767198640289,-500.0,0.00019178,2]
[400211685,1767198640299,-500.0,0.00019178,2]
[400211686,1767198640308,-500.0,0.00019178,2]
[400211687,1767198640317,-500.0,0.00019178,2]
[400211688,1767198640327,-500.0,0.00019178,2]
[400211689,1767198640337,-500.0,0.00019178,2]
[400211690,1767198640347,-500.0,0.00019178,2]
[400211691,1767198640356,-1014.0,0.00019286,2]
[400211692,1767198640366,-1014.0,0.00019303,2]
[400211693,1767198640375,-1014.0,0.00019343,2]
[400211694,1767198640385,-1014.0,0.00019456,2]
[400211695,1767198640393,-1364.0,0.0001946,2]
[400211696,1767198640403,-627.0,0.0001946,2]
[400211697,1767198640413,-2156.0,0.0001946,2]
[400211698,1767198640422,-150.0,0.0001946,2]
[400211699,1767198640432,-416.0,0.0001946,2]
[400211700,1767198640442,-416.0,0.0001946,2]
[400211701,1767198640451,-1038.33,0.000195,2]
[400211702,1767198640461,-165.71,0.000195,2]
[400211703,1767198640470,-160.6,0.000195,2]
[400211704,1767198640482,-10762.96,0.000195,2]
[400211705,1767198640495,-1014.0,0.00019521,2]
[400211706,1767198640505,-1014.0,0.00019555,2]
[400211707,1767198640514,-1014.0,0.00019569,2]
[400211708,1767198640525,-550.74938157,0.00019649,2]
[400211709,1767198640535,-409.19,0.00019653,2]
[400211710,1767198640545,-1014.0,0.00019745,2]
[400211711,1767198640555,-1014.0,0.00019963,2]
[400211712,1767198640565,-1597.50710874,0.0002,2]
[400211713,1767198640574,-59520.0,0.0002,7]
[400211714,1767198640583,-1014.0,0.00020017,2]
[400211715,1767198640593,-1014.0,0.00020254,2]
[400211716,1767198640603,-150.0,0.00020289,30]
[400211717,1767198640612,-1014.0,0.00020324,2]
[400211719,1767198640621,-1014.0,0.00020356,2]
[400211721,1767198640631,-855.85292071,0.00020385,2]
[400211723,1767198640641,-1014.0,0.00020456,2]
[400211725,1767198640651,-1014.0,0.00020458,2]
[400211726,1767198640660,-1014.0,0.00020478,2]
[400211727,1767198640669,-805.345898,0.00020548,2]
[400211728,1767198640679,-1014.0,0.00020581,2]
[400211729,1767198640689,-1014.0,0.00020615,2]
[400211730,1767198640698,-1014.0,0.00020621,2]
[400211731,1767198640708,-1014.0,0.00020706,2]
[400211732,1767198640717,-1014.0,0.00020714,2]
[400211733,1767198640726,-1014.0,0.00020724,2]
[400211734,1767198640735,-467.64,0.00020809,2]
[400211735,1767198640745,-1014.0,0.00020956,2]
[400211736,1767198640754,-1014.0,0.00021052,2]
[400211737,1767198640763,-1014.0,0.00021182,2]
[400211738,1767198640773,-608.38594476,0.00021649,2]
[400211739,1767198640782,-447.91539096,0.00021917,2]
[400211740,1767198640792,-374.71260428,0.00021917,2]
[400211741,1767198640801,-500.0,0.00021917,2]
[400211742,1767198640810,-500.0,0.00021917,2]
[400211743,1767198640819,-500.0,0.00021917,2]
[400211744,1767198640829,-500.0,0.00021917,2]
[400211745,1767198640838,-1323.99,0.00021917,2]
[400211746,1767198640847,-683.53,0.00021917,2]
[400211747,1767198640857,-2049.15890006,0.00021917,2]
[400211748,1767198640867,-500.0,0.00021917,2]
[400211749,1767198640876,-2983.45,0.00021917,2]
[400211750,1767198640886,-500.0,0.00021917,2]
[400211751,1767198641021,-500.0,0.00021917,2]
[400211752,1767198641031,-504.41364337,0.00021917,2]
[400211753,1767198641041,-1089.48,0.00021917,2]
[400211754,1767198641050,-500.0,0.00021917,2]
[400211755,1767198641059,-9696.43,0.00021917,2]
[400211756,1767198641069,-500.0,0.00021917,2]
[400211757,1767198641078,-337.5324406,0.00021917,2]
[400211758,1767198641087,-500.0,0.00021917,2]
[400211759,1767198641096,-500.0,0.00021917,2]
[400211760,1767198641106,-2098.98,0.00021917,2]
[400211761,1767198641116,-500.0,0.00021917,2]
[400211762,1767198641125,-500.0,0.00021917,2]
[400211763,1767198641134,-500.0,0.00021917,2]
[400211764,1767198641144,-275.96070951,0.00021918,2]
[400211765,1767198641153,-526.1,0.00021965,2]
[400211766,1767198641163,-240.56,0.00022,2]
[400211767,1767198641172,-184.0,0.00022,2]
[400211768,1767198641181,-208.62,0.00022,7]
[400211769,1767198641190,-150.0,0.00022134,30]
[400211770,1767198641199,-500.0,0.00022191,2]
[400211771,1767198641209,-500.0,0.00022191,2]
[400211772,1767198641218,-1323.99,0.00022191,2]
[400211773,1767198641228,-683.53,0.00022191,2]